bitfinex/quotes_ETHUSD_20240604
["timestamp","ask_amount","ask_price","bid_price","bid_amount"]
[1717498383553,2.65485,3766.7,3766.3,0.08881984]
[1717498383716,2.65485,3766.7,3766.0,1.38381774]
[1717498383922,2.65485,3766.7,3766.4,0.08881984]
[1717498384158,3.30617741,3766.7,3765.9,9.7668]
[1717498384333,2.65485,3766.7,3766.5,0.08881984]
[1717498384659,2.65485,3766.7,3766.6,0.08881984]
[1717498384850,2.65485,3766.7,3766.0,1.38400677]
[1717498385022,2.65485,3766.7,3766.1,1.01147541]
[1717498385532,2.65485,3766.7,3766.2,0.92265557]
[1717498386115,2.65485,3766.7,3766.3,0.08881984]
[1717498386562,2.65485,3766.7,3766.0,1.38400677]
[1717498386864,2.65485,3766.7,3766.1,0.92266645]
[1717498387061,2.65485,3766.7,3766.2,0.08881984]
[1717498387225,2.65485,3766.7,3766.0,1.38400677]
[1717498387560,2.65485,3766.7,3766.1,2.3954913]
[1717498387760,2.65485,3766.7,3766.2,0.92266469]
[1717498388382,2.65485,3766.7,3766.3,0.08881984]
[1717498388755,2.65485,3766.7,3766.1,1.3839704]
[1717498389083,2.65485,3766.7,3766.2,0.92265012]
[1717498389247,2.65485,3766.7,3766.3,0.08881984]
[1717498389448,2.65485,3766.7,3766.0,1.3839704]
[1717498389747,2.65485,3766.7,3766.4,0.08881984]
[1717498389948,2.65485,3766.7,3766.1,1.3839704]
[1717498390145,2.65485,3766.7,3766.1,0.08881984]
[1717498393079,2.65485,3766.7,3766.2,0.92264289]
[1717498393283,2.65485,3766.7,3766.3,0.08887024]
[1717498393440,2.65485,3766.7,3766.1,1.94080036]
[1717498393643,2.65485,3766.7,3766.2,2.3954794]
[1717498393844,2.65485,3766.7,3766.3,0.92257653]
[1717498394043,2.65485,3766.7,3766.1,1.38386479]
[1717498394245,2.65485,3766.7,3766.2,1.01149268]
[1717498394482,2.65485,3766.7,3766.2,0.08887024]
[1717498395850,2.65485,3766.7,3766.0,2.18786479]
[1717498396062,2.65485,3766.7,3766.1,1.01153308]
[1717498396256,2.65485,3766.7,3766.1,0.08887024]
[1717498398776,2.65506,3766.4,3766.1,0.08887024]
[1717498399362,2.65506,3766.4,3765.9,7.32]
[1717498399577,2.65506,3766.4,3766.2,0.08887024]
[1717498399754,2.65506,3766.4,3765.9,7.32]
[1717498399956,2.65506,3766.4,3766.3,0.08887024]
[1717498400165,2.65506,3766.4,3765.9,7.32]
[1717498400365,2.65506,3766.4,3766.3,0.08887024]
[1717498400864,2.65506,3766.4,3765.9,7.32]
[1717498401059,2.65506,3766.4,3766.3,0.08887024]
[1717498401256,2.65506,3766.4,3766.0,0.9226782]
[1717498401456,2.65506,3766.4,3766.1,0.08887024]
[1717498401704,2.65506,3766.4,3765.9,7.32]
[1717498401867,2.65506,3766.4,3766.2,0.08887024]
[1717498402194,2.65506,3766.4,3766.0,1.38400125]
[1717498402401,2.65506,3766.4,3766.3,0.08887024]
[1717498402599,2.65506,3766.4,3765.9,7.32]
[1717498402763,2.65506,3766.4,3766.1,0.08887024]
[1717498402963,2.65506,3766.4,3766.0,1.38401898]
[1717498403173,2.65506,3766.4,3766.2,0.08887024]
[1717498403499,2.65506,3766.4,3766.3,0.08887024]
[1717498403892,2.65506,3766.4,3766.0,1.38401898]
[1717498404093,2.65506,3766.4,3766.3,0.08887024]
[1717498404280,2.65506,3766.4,3766.0,1.38401898]
[1717498404475,2.65506,3766.4,3766.3,0.08885764]
[1717498404679,2.65506,3766.4,3766.0,1.38401898]
[1717498404882,2.65506,3766.4,3766.3,0.08885764]
[1717498405097,2.65506,3766.4,3766.0,1.38401898]
[1717498405400,2.65506,3766.4,3766.3,0.08885764]
[1717498405607,2.65506,3766.4,3766.0,1.38401898]
[1717498405761,2.65506,3766.4,3766.3,0.08885764]
[1717498406189,2.65506,3766.4,3766.0,1.38401898]
[1717498406466,2.65506,3766.4,3766.1,0.92266714]
[1717498406687,2.65506,3766.4,3766.2,0.08885764]
[1717498407198,2.65506,3766.4,3766.0,1.38401898]
[1717498407511,2.65506,3766.4,3766.1,0.92266879]
[1717498407662,2.65506,3766.4,3766.1,1.01152643]
[1717498407859,2.65506,3766.4,3766.1,0.08885764]
[1717498410788,5.03496,3766.4,3766.1,0.08885764]
[1717498411167,5.03496,3766.4,3765.8,1.384009]
[1717498411421,5.03496,3766.4,3766.2,0.08885764]
[1717498411624,5.03496,3766.4,3765.8,1.384009]
[1717498411823,5.03496,3766.4,3766.3,0.08885764]
[1717498412119,5.47726254,3766.4,3766.3,0.08885764]
[1717498412273,5.47726254,3766.4,3765.6,2.74477777]
[1717498412632,5.03496,3766.4,3765.7,2.39560634]
[1717498412913,5.03496,3766.4,3765.8,0.9227397]
[1717498413514,5.03496,3766.4,3765.9,0.08885764]
[1717498413880,5.03496,3766.4,3765.6,1.36076877]
[1717498414217,5.03496,3766.4,3765.7,0.08885764]
[1717498415921,5.03496,3766.4,3765.8,3.172]
[1717498415922,2.65506,3766.4,3765.8,3.172]
[1717498416492,2.65506,3766.4,3765.9,0.08881984]
[1717498416716,2.65484,3766.7,3765.8,3.172]
[1717498417025,2.65484,3766.7,3766.0,0.08881984]
[1717498417176,2.65484,3766.7,3765.9,0.08883663]
[1717498417375,2.65484,3766.7,3766.0,0.80391177]
[1717498417575,2.65484,3766.7,3766.0,0.8927484]
[1717498419224,2.65484,3766.7,3766.1,2.3869]
[1717498419722,2.65484,3766.7,3766.2,0.08883663]
[1717498427031,2.65484,3766.7,3766.3,2.30649828]
[1717498427326,2.65484,3766.7,3766.4,1.01111693]
[1717498427520,2.65484,3766.7,3766.4,0.08851762]
[1717498428211,2.65484,3766.7,3766.2,0.55250288]
[1717498428427,2.65484,3766.7,3766.5,0.08859317]
[1717498428596,2.65484,3766.7,3766.4,1.38389514]
[1717498428926,2.65484,3766.7,3766.2,0.55250288]
[1717498429085,2.65484,3766.7,3766.5,0.08859317]
[1717498429287,2.65484,3766.7,3766.4,1.3838991]
[1717498429496,2.65484,3766.7,3766.5,0.08858478]
[1717498429699,2.65484,3766.7,3766.2,0.55250288]
[1717498429897,2.65484,3766.7,3766.6,0.08858478]
[1717498430115,2.65484,3766.7,3766.2,0.55250288]
[1717498430315,2.65484,3766.7,3766.3,3.11782948]
[1717498430629,2.65484,3766.7,3766.4,2.30649598]
[1717498430787,2.65484,3766.7,3766.5,0.92259839]
[1717498430987,2.65484,3766.7,3766.5,0.08857638]
[1717498431413,2.65484,3766.7,3766.3,0.72274872]
[1717498431601,2.65484,3766.7,3766.6,0.08857638]
[1717498431799,2.65463,3767.0,3766.5,2.4326]
[1717498432023,2.65463,3767.0,3766.6,2.39498738]
[1717498432536,2.65463,3767.0,3766.7,2.30628433]
[1717498432686,2.65463,3767.0,3766.8,0.9225644]
[1717498433023,2.65463,3767.0,3766.6,0.55250288]
[1717498433180,2.65463,3767.0,3766.9,0.08857638]
[1717498433380,2.65463,3767.0,3766.6,1.38372172]
[1717498433593,2.65463,3767.0,3766.9,0.08857638]
[1717498433793,2.65463,3767.0,3766.6,1.38372172]
[1717498433996,2.65463,3767.0,3766.9,0.08857638]
[1717498434487,2.65463,3767.0,3766.6,1.38372172]
[1717498434693,2.65463,3767.0,3766.7,1.01105907]
[1717498434893,2.65463,3767.0,3766.7,0.08857638]
[1717498435192,3.45841,3767.4,3766.7,0.08857638]
[1717498435525,4.029971,3767.4,3766.7,0.08857638]
[1717498435732,3.45841,3767.4,3766.7,0.08857638]
[1717498436816,3.45841,3767.4,3766.5,3.81632172]
[1717498437126,3.45841,3767.4,3766.6,0.92247954]
[1717498437293,3.45841,3767.4,3766.6,1.01105592]
[1717498437622,3.45841,3767.4,3766.6,0.08857638]
[1717498438536,2.65441,3767.4,3766.6,0.08857638]
[1717498438705,2.65441,3767.4,3766.6,1.49099135]
[1717498439335,2.65441,3767.4,3766.7,0.92244664]
[1717498439841,2.65386,3768.1,3766.7,0.92244664]
[1717498439842,5.0703,3767.8,3766.9,2.4454]
[1717498440137,0.50703,3767.7,3767.0,4.38101552]
[1717498440306,5.0703,3767.8,3767.0,3.54712501]
[1717498440505,5.0703,3767.8,3767.1,0.92234855]
[1717498441026,5.0703,3767.8,3767.2,0.08850501]
[1717498441327,5.0703,3767.8,3767.0,4.84214283]
[1717498441626,5.0703,3767.8,3767.3,0.08850501]
[1717498441829,5.0703,3767.8,3767.0,3.45862]
[1717498442327,5.0703,3767.8,3767.1,0.08850501]
[1717498442535,2.6541,3767.8,3767.1,0.08850501]
[1717498446095,2.6541,3767.8,3766.9,3.2494]
[1717498446296,3.4581,3767.8,3767.2,0.08850501]
[1717498446497,3.4581,3767.8,3767.0,0.46330134]
[1717498446697,3.4581,3767.8,3767.1,0.08850501]
[1717498452112,2.65426,3767.6,3767.1,0.08850501]
[1717498454616,2.65426,3767.6,3766.7,3.2641]
[1717498454956,2.65426,3767.6,3766.8,1.43898679]
[1717498455125,3.45826,3767.6,3766.8,1.5273995]
[1717498460193,2.65426,3767.6,3766.8,1.5273995]
[1717498467343,2.65426,3767.6,3766.9,0.92241242]
[1717498467631,2.65435,3767.4,3767.0,0.08850085]
[1717498468100,2.65435,3767.4,3766.8,1.43898679]
[1717498468305,2.65435,3767.4,3766.9,1.01091691]
[1717498468515,2.65455,3767.2,3766.9,0.08850085]
[1717498468821,2.65455,3767.2,3766.7,1.38361523]
[1717498469127,2.65455,3767.2,3766.3,17.90572]
[1717498469328,2.65455,3767.2,3766.4,2.3948102]
[1717498469488,2.65455,3767.2,3766.5,0.92252374]
[1717498469893,2.65455,3767.2,3766.6,0.08850085]
[1717498470499,2.65455,3767.2,3766.4,1.38378561]
[1717498470694,2.65455,3767.2,3766.4,2.30630365]
[1717498470885,2.65455,3767.2,3766.5,0.08850085]
[1717498472689,2.65455,3767.2,3766.5,0.89250085]
[1717498472988,2.65455,3767.2,3766.6,0.92250887]
[1717498473489,2.65455,3767.2,3766.7,0.08850085]
[1717498473886,2.65455,3767.2,3766.5,0.804]
[1717498474086,2.65455,3767.2,3766.6,1.01100189]
[1717498474325,2.65455,3767.2,3766.6,0.08850085]
[1717498474509,2.65455,3767.2,3766.7,0.92249716]
[1717498474936,2.65455,3767.2,3766.8,0.08850085]
[1717498475133,2.65455,3767.2,3766.6,1.38378561]
[1717498475426,2.65455,3767.2,3766.7,1.01098153]
[1717498475656,2.65455,3767.2,3766.7,0.08850085]
[1717498476476,2.65455,3767.2,3766.6,1.38378561]
[1717498476688,2.65455,3767.2,3766.8,0.08850085]
[1717498476968,2.65455,3767.2,3766.9,0.08850085]
[1717498477343,2.65455,3767.2,3766.6,1.38378561]
[1717498477544,2.65455,3767.2,3766.7,2.39475041]
[1717498477742,2.65455,3767.2,3766.8,0.92246395]
[1717498478154,2.65455,3767.2,3766.9,0.08850085]
[1717498478341,2.65455,3767.2,3766.7,1.38378561]
[1717498478674,2.65455,3767.2,3766.8,1.01096379]
[1717498478971,2.65455,3767.2,3766.8,0.08850085]
[1717498479765,2.65455,3767.2,3766.9,0.92245947]
[1717498480266,2.65455,3767.2,3767.0,0.08855958]
[1717498480678,2.65455,3767.2,3766.8,1.38378561]
[1717498480858,2.65455,3767.2,3767.1,0.08855958]
[1717498481532,2.65455,3767.2,3766.8,1.38378561]
[1717498481735,2.65455,3767.2,3766.9,1.01101614]
[1717498481935,2.65455,3767.2,3766.9,0.08855958]
[1717498482185,2.65455,3767.2,3766.7,1.38378561]
[1717498482391,2.65455,3767.2,3767.0,0.08855958]
[1717498482575,2.65455,3767.2,3766.8,1.38378561]
[1717498482775,2.65455,3767.2,3767.1,0.08855958]
[1717498483005,2.65455,3767.2,3766.8,1.38378561]
[1717498483180,2.65455,3767.2,3767.1,0.08855958]
[1717498483505,2.65455,3767.2,3766.7,1.38378561]
[1717498483662,2.65455,3767.2,3767.1,0.08855958]
[1717498483864,2.65455,3767.2,3766.8,1.38378561]
[1717498484089,2.65455,3767.2,3767.1,0.08855958]
[1717498484619,2.65455,3767.2,3766.8,1.38378561]
[1717498484757,2.65455,3767.2,3767.1,0.08855958]
[1717498484957,2.65455,3767.2,3766.7,1.38378561]
[1717498485201,2.65455,3767.2,3766.8,1.01105796]
[1717498485384,2.65455,3767.2,3766.8,0.08855958]
[1717498486315,3.237495,3767.2,3766.8,0.08855958]
[1717498486669,3.237495,3767.2,3766.7,1.38378561]
[1717498487002,3.237495,3767.2,3766.8,0.92251586]
[1717498487206,3.237495,3767.2,3766.8,0.08855958]
[1717498488008,3.237495,3767.2,3766.9,0.08855958]
[1717498488691,3.237495,3767.2,3766.6,1.38378561]
[1717498488896,2.65455,3767.2,3767.0,0.08855958]
[1717498489072,2.65455,3767.2,3766.6,1.38378561]
[1717498489401,2.65455,3767.2,3766.7,0.9225193]
[1717498489609,2.65455,3767.2,3766.7,0.08855958]
[1717498497058,2.65455,3767.2,3766.7,1.47236741]
[1717498497219,2.65455,3767.2,3766.7,0.08855958]
[1717498498357,2.65455,3767.2,3766.6,1.38379974]
[1717498498660,2.65455,3767.2,3766.7,1.01115333]
[1717498498836,2.65455,3767.2,3766.7,0.08862255]
[1717498499434,2.65469,3767.0,3766.6,1.38380571]
[1717498499662,2.65469,3767.0,3766.8,0.08862255]
[1717498499847,2.65469,3767.0,3766.6,1.38380277]
[1717498500046,2.65469,3767.0,3766.9,0.08862255]
[1717498500224,2.65469,3767.0,3766.6,1.38380461]
[1717498500421,2.65469,3767.0,3766.9,0.08862255]
[1717498500422,5.412149,3767.0,3766.9,0.08862255]
[1717498500762,2.65483,3766.8,3766.6,1.38381633]
[1717498500983,2.65483,3766.8,3766.4,1.93631921]
[1717498501122,2.65483,3766.8,3766.5,2.30639689]
[1717498501323,2.65483,3766.8,3766.6,0.92258056]
[1717498501560,2.65483,3766.8,3766.5,1.38381633]
[1717498501719,3.226203,3766.8,3766.6,0.92258771]
[1717498501928,3.226203,3766.8,3766.3,1.38381633]
[1717498501929,2.65491,3766.6,3766.3,1.38381633]
[1717498502130,2.65441,3767.4,3766.0,0.55250288]
[1717498502131,2.3281,3766.2,3766.0,0.55250288]
[1717498502340,4.98329,3766.2,3765.9,1.3840352]
[1717498502662,4.98329,3766.2,3765.8,1.3840352]
[1717498502862,4.98329,3766.2,3765.9,0.92275231]
[1717498503159,2.65519,3766.2,3765.8,4.4407352]
[1717498503349,2.65519,3766.2,3765.9,0.92275373]
[1717498503550,2.65519,3766.2,3766.0,0.92275373]
[1717498503739,2.65519,3766.2,3765.8,2.77023444]
[1717498503940,2.65519,3766.2,3765.9,0.9227162]
[1717498504163,2.65519,3766.2,3765.8,0.58219924]
[1717498504340,2.65519,3766.2,3765.9,0.92272355]
[1717498504537,2.65519,3766.2,3765.8,1.38619924]
[1717498505154,2.65519,3766.2,3766.0,0.804]
[1717498505800,2.65519,3766.2,3765.8,0.58219924]
[1717498505981,2.65519,3766.2,3766.0,0.804]
[1717498506657,2.65519,3766.2,3765.6,3.63680531]
[1717498506990,2.65541,3765.9,3765.7,0.92274237]
[1717498507194,5.10451,3765.9,3765.6,0.804]
[1717498507693,5.10451,3765.9,3765.7,0.804]
[1717498508459,5.10451,3765.9,3765.6,0.804]
[1717498509301,5.10451,3765.9,3765.8,0.804]
[1717498510303,5.10451,3765.9,3765.3,7.32]
[1717498510516,5.10451,3765.9,3765.5,0.804]
[1717498511161,5.10451,3765.9,3765.6,0.804]
[1717498514692,5.10451,3765.9,3765.7,0.08633256]
[1717498515320,5.10451,3765.9,3765.8,0.804]
[1717498515632,5.10451,3765.9,3765.8,0.89030317]
[1717498519199,5.04591,3765.9,3765.8,0.08630317]
[1717498519399,5.550501,3765.9,3765.3,8.124]
[1717498519620,5.04591,3765.9,3765.4,0.08632417]
[1717498520035,2.3266,3765.5,3765.4,0.08632417]
[1717498520535,2.3266,3765.5,3765.0,0.804]
[1717498520914,2.65576,3765.4,3765.1,0.08632417]
[1717498521121,2.6555,3765.8,3765.2,0.804]
[1717498521315,2.65561,3765.6,3765.2,0.804]
[1717498521947,2.65561,3765.6,3765.3,0.08632417]
[1717498522242,2.65561,3765.6,3765.2,0.804]
[1717498522448,2.65561,3765.6,3765.4,0.08632417]
[1717498522620,2.65561,3765.6,3765.2,0.804]
[1717498522821,2.65561,3765.6,3764.8,5.10874]
[1717498523023,2.65583,3765.3,3765.1,0.804]
[1717498523424,4.95053,3765.3,3765.1,0.804]
[1717498523854,4.95053,3765.3,3764.7,7.32]
[1717498524055,4.95053,3765.3,3765.0,0.804]
[1717498524647,4.95053,3765.3,3764.7,8.556133]
[1717498524857,4.95053,3765.3,3764.7,1.236133]
[1717498525167,4.95053,3765.3,3765.1,0.804]
[1717498525313,4.95053,3765.3,3764.4,5.04133]
[1717498525519,4.95053,3765.3,3765.1,0.804]
[1717498529179,2.65583,3765.3,3765.1,0.804]
[1717498529625,2.65583,3765.3,3765.2,0.08640817]
[1717498530068,2.65583,3765.3,3765.0,0.804]
[1717498530326,2.65583,3765.3,3765.2,0.08640817]
[1717498530825,2.65583,3765.3,3765.0,0.804]
[1717498531660,2.65583,3765.3,3765.1,0.08640817]
[1717498533233,3.169133,3765.3,3765.1,0.08640817]
[1717498533564,3.169133,3765.3,3764.8,0.804]
[1717498533768,2.65602,3765.1,3764.9,0.08640817]
[1717498535769,2.65602,3765.1,3765.0,0.804]
[1717498536067,2.65602,3765.1,3765.0,0.89055517]
[1717498536901,2.65602,3765.1,3765.0,0.08655517]
[1717498537101,5.232322,3765.1,3765.0,0.08655517]
[1717498537281,5.232322,3765.1,3764.7,0.804]
[1717498537483,4.96672,3765.1,3764.7,0.804]
[1717498537791,4.96672,3765.1,3764.8,0.08655517]
[1717498537963,4.96672,3765.1,3764.7,0.804]
[1717498538166,4.96672,3765.1,3764.8,0.08655517]
[1717498538598,4.96672,3765.1,3764.7,0.804]
[1717498538781,4.96672,3765.1,3764.9,0.08655517]
[1717498538981,4.96672,3765.1,3764.3,7.32]
[1717498539199,4.96672,3765.1,3764.4,0.08655517]
[1717498539399,2.65619,3764.8,3764.4,0.08655517]
[1717498539603,2.65619,3764.8,3764.7,0.804]
[1717498540189,2.65619,3764.8,3764.7,0.89055517]
[1717498542202,2.65619,3764.8,3764.7,0.08655517]
[1717498542448,2.65619,3764.8,3764.7,0.804]
[1717498542605,2.65619,3764.8,3764.7,0.89055517]
[1717498544024,2.65619,3764.8,3764.7,0.08655517]
[1717498544229,2.65619,3764.8,3764.7,0.804]
[1717498544429,2.65619,3764.8,3764.7,0.8906896]
[1717498545810,2.65619,3764.8,3764.7,0.0866896]
[1717498546116,2.65619,3764.8,3764.7,0.804]
[1717498546325,2.65619,3764.8,3764.7,0.8906896]
[1717498551442,2.65619,3764.8,3764.7,0.08381973]
[1717498551616,4.95559,3764.8,3764.7,0.08381973]
[1717498551801,2.65667,3764.1,3764.0,7.32]
[1717498552000,2.65667,3764.1,3764.0,8.20781973]
[1717498553187,2.65667,3764.1,3764.0,0.88781973]
[1717498554138,2.65667,3764.1,3764.0,0.08381973]
[1717498554486,2.65667,3764.1,3764.0,0.804]
[1717498556023,2.65667,3764.1,3764.0,1.22015815]
[1717498556177,2.65667,3764.1,3764.0,0.88781973]
[1717498556382,2.65667,3764.1,3764.0,0.804]
[1717498557018,2.65691,3763.8,3763.2,7.32]
[1717498557231,2.65691,3763.8,3763.7,0.804]
[1717498557601,2.65691,3763.8,3763.7,0.88781973]
[1717498560420,2.65666,3764.2,3763.7,3.37331973]
[1717498560626,2.65666,3764.2,3764.1,0.804]
[1717498561127,2.65666,3764.2,3764.1,0.88899203]
[1717498564230,2.6564,3764.5,3764.1,0.88899203]
[1717498564439,2.6564,3764.5,3764.4,0.804]
[1717498564797,2.6564,3764.5,3764.4,0.88899203]
[1717498565529,2.65618,3764.9,3764.4,0.88899203]
[1717498565726,2.65618,3764.9,3764.8,0.804]
[1717498565930,2.921798,3764.9,3764.8,0.804]
[1717498567412,2.65618,3764.9,3764.8,0.804]
[1717498567633,2.65618,3764.9,3764.8,0.88899203]
[1717498569097,2.65586,3765.3,3764.8,0.88899203]
[1717498569421,2.65586,3765.3,3765.2,0.804]
[1717498569794,2.65586,3765.3,3765.2,0.88899203]
[1717498571905,2.65562,3765.6,3765.2,0.88899203]
[1717498572207,2.65562,3765.6,3765.5,0.804]
[1717498573901,2.65562,3765.6,3765.5,0.88835323]
[1717498581653,2.65562,3765.6,3765.5,0.08435323]
[1717498581853,2.65562,3765.6,3765.5,0.804]
[1717498582033,2.65562,3765.6,3765.5,0.88835323]
[1717498584254,2.6554,3765.9,3765.5,0.88835323]
[1717498584412,2.6554,3765.9,3765.7,0.804]
[1717498586313,2.6554,3765.9,3765.2,2.266]
[1717498586628,2.6554,3765.9,3765.8,0.804]
[1717498586942,3.23792886,3765.9,3765.8,0.804]
[1717498588227,2.6554,3765.9,3765.8,0.804]
[1717498595579,2.65561,3765.7,3765.2,2.266]
[1717498595786,2.65561,3765.7,3765.6,0.804]
[1717498596385,2.65561,3765.7,3765.6,0.88815999]
[1717498597268,5.12591,3765.7,3765.6,0.08415999]
[1717498597471,5.391471,3765.7,3765.6,0.804]
[1717498597658,5.391471,3765.7,3765.6,0.88827339]
[1717498602369,2.921171,3765.7,3765.6,0.88827339]
[1717498612400,2.65561,3765.7,3765.6,0.88827339]
[1717498628270,2.65561,3765.7,3765.6,0.08427339]
[1717498628443,2.65561,3765.7,3765.6,0.88827339]
[1717498628764,2.65575,3765.5,3765.3,2.4864]
[1717498628974,2.65575,3765.5,3765.4,0.804]
[1717498629535,2.65575,3765.5,3765.4,1.72698336]
[1717498631166,2.65575,3765.5,3765.4,0.804]
[1717498632543,2.65575,3765.5,3765.4,1.72691329]
[1717498632928,2.65575,3765.5,3765.4,3.11128313]
[1717498634762,2.65575,3765.5,3765.4,3.19557756]
[1717498634950,2.65547,3765.9,3765.4,1.81120772]
[1717498635151,2.65547,3765.9,3765.8,0.804]
[1717498636041,2.65547,3765.9,3765.8,0.88829443]
[1717498637438,2.65547,3765.9,3765.8,0.08429443]
[1717498637649,2.65547,3765.9,3765.8,0.88829443]
[1717498639598,5.82509863,3766.2,3765.8,0.88829443]
[1717498639884,2.65521,3766.2,3766.1,0.804]
[1717498640361,2.65521,3766.2,3766.1,0.8882062]
[1717498641530,2.65521,3766.2,3766.1,0.0842062]
[1717498641677,2.65521,3766.2,3766.1,0.804]
[1717498641876,2.65521,3766.2,3766.1,0.8882062]
[1717498644390,5.3,3766.5,3766.1,3.3164062]
[1717498644737,5.3,3766.5,3766.4,0.804]
[1717498645029,5.3,3766.5,3766.4,0.88801713]
[1717498664709,5.3,3766.5,3766.4,3.21741713]
[1717498669456,2.65472,3766.9,3766.4,3.21741713]
[1717498669769,2.65472,3766.9,3766.8,0.804]
[1717498670059,2.65472,3766.9,3766.8,0.88790373]
[1717498687375,2.65472,3766.9,3766.8,0.08390373]
[1717498687682,2.65472,3766.9,3766.8,0.88790373]
[1717498689761,2.65449,3767.2,3766.8,0.88790373]
[1717498689963,2.65449,3767.2,3767.1,0.804]
[1717498690183,2.65449,3767.2,3767.1,0.88733255]
[1717498690901,2.65429,3767.5,3767.1,3.17123255]
[1717498691110,2.65429,3767.5,3767.4,0.804]
[1717498691312,3.16988863,3767.7,3767.4,0.804]
[1717498691467,3.16988863,3767.7,3767.6,0.804]
[1717498691962,3.16988863,3767.7,3767.6,0.88732415]
[1717498694218,2.65408,3767.8,3767.6,0.88732415]
[1717498697717,2.65408,3767.8,3767.6,1.21080657]
[1717498699373,2.65385,3768.2,3767.6,1.21080657]
[1717498699575,2.65385,3768.2,3768.1,0.804]
[1717498699890,2.65385,3768.2,3768.1,0.88703445]
[1717498700276,2.65385,3768.2,3768.1,0.804]
[1717498701875,2.65356,3768.6,3768.1,0.804]
[1717498702089,2.65356,3768.6,3768.5,0.804]
[1717498702398,2.65356,3768.6,3768.5,0.88667763]
[1717498705098,2.65356,3768.6,3768.5,0.08267763]
[1717498705527,2.65356,3768.6,3768.2,0.804]
[1717498705749,2.65371,3768.4,3768.2,0.804]
[1717498713031,2.65371,3768.4,3768.3,0.08237124]
[1717498713362,2.65371,3768.4,3768.2,0.804]
[1717498713539,2.65371,3768.4,3768.3,0.08237124]
[1717498713871,2.65371,3768.4,3768.2,0.804]
[1717498714165,2.65371,3768.4,3768.3,0.08237124]
[1717498714365,2.65371,3768.4,3768.2,0.804]
[1717498714588,2.65371,3768.4,3768.3,0.08237124]
[1717498716265,2.65344,3768.7,3768.3,0.08237124]
[1717498716482,2.65344,3768.7,3768.6,0.804]
[1717498716961,2.65344,3768.7,3768.6,0.88626217]
[1717498723221,3.16988863,3768.8,3768.6,0.88626217]
[1717498728608,3.16988863,3768.8,3768.6,0.08226217]
[1717498728609,2.65343,3768.7,3768.6,0.08226217]
[1717498728808,3.46253186,3768.7,3767.9,9.5847]
[1717498729017,2.65343,3768.7,3768.6,0.08214887]
[1717498729325,2.65343,3768.7,3768.4,0.804]
[1717498729832,2.65343,3768.7,3768.5,0.08214887]
[1717498730191,2.65343,3768.7,3768.6,0.804]
[1717498730405,2.65343,3768.7,3768.6,0.88584256]
[1717498734832,2.65343,3768.7,3768.6,0.08184256]
[1717498734999,2.65343,3768.7,3767.9,9.97393]
[1717498735201,2.65343,3768.7,3768.6,0.0818006]
[1717498735432,2.65343,3768.7,3768.5,0.804]
[1717498735737,2.65343,3768.7,3768.6,0.0818006]
[1717498737299,2.65343,3768.7,3768.4,0.804]
[1717498737789,2.65343,3768.7,3768.5,0.08175865]
[1717498746483,2.3119,3768.6,3768.5,0.08175865]
[1717498746819,2.3119,3768.6,3768.0,0.804]
[1717498747010,2.3119,3768.6,3768.5,0.08180061]
[1717498747215,2.3119,3768.6,3767.9,7.32]
[1717498747417,2.3119,3768.6,3768.5,0.08180061]
[1717498747615,2.3119,3768.6,3767.8,2.3591]
[1717498747616,3.073771,3768.6,3767.8,2.3591]
[1717498747850,2.65397,3768.0,3767.8,2.3591]
[1717498748060,2.65397,3768.0,3767.9,0.804]
[1717498748585,2.4535,3768.1,3767.3,0.55250288]
[1717498748869,2.4535,3768.1,3767.3,1.72640362]
[1717498749019,2.964224,3768.1,3767.3,0.804]
[1717498749656,2.65442,3767.3,3767.0,2.2572]
[1717498749828,2.65442,3767.3,3767.2,0.804]
[1717498753225,2.65442,3767.3,3766.6,1.93622049]
[1717498753226,2.65467,3767.0,3766.6,0.55250288]
[1717498753437,2.65467,3767.0,3766.9,0.804]
[1717498754873,2.65467,3767.0,3766.9,0.88355227]
[1717498756771,2.65467,3767.0,3766.9,0.07955227]
[1717498756987,2.65467,3767.0,3766.9,0.88355227]
[1717498757137,2.65467,3767.0,3766.9,0.804]
[1717498757480,2.65467,3767.0,3766.9,0.88355227]
[1717498758662,2.65441,3767.4,3766.9,1.2160775]
[1717498758873,2.65441,3767.4,3767.2,0.804]
[1717498759378,2.65441,3767.4,3767.3,0.079632]
[1717498759744,2.65441,3767.4,3767.2,0.804]
[1717498759935,2.65441,3767.4,3767.3,0.079632]
[1717498760288,2.65441,3767.4,3767.2,0.804]
[1717498760493,2.65441,3767.4,3767.3,0.07961522]
[1717498760779,2.65441,3767.4,3767.2,0.804]
[1717498761183,2.65441,3767.4,3767.3,0.07961522]
[1717498761548,2.65441,3767.4,3767.2,1.14465252]
[1717498761742,2.65441,3767.4,3767.3,0.07961522]
[1717498762190,2.65441,3767.4,3767.2,1.14465252]
[1717498762480,2.65441,3767.4,3767.3,0.07961522]
[1717498762845,2.65441,3767.4,3767.2,1.14465252]
[1717498763041,2.65441,3767.4,3767.3,0.07961522]
[1717498763238,2.65441,3767.4,3767.2,1.14465252]
[1717498763438,2.65441,3767.4,3767.3,0.07961522]
[1717498763671,2.65441,3767.4,3767.2,1.14465252]
[1717498763886,2.65441,3767.4,3767.3,0.07961522]
[1717498764283,2.65441,3767.4,3767.3,0.34942677]
[1717498764584,2.65441,3767.4,3767.3,0.42904199]
[1717498769304,2.65441,3767.4,3767.3,0.07961522]
[1717498769708,2.65441,3767.4,3767.2,0.804]
[1717498769910,2.65441,3767.4,3767.3,0.07960262]
[1717498770285,2.65441,3767.4,3767.2,0.804]
[1717498770470,2.65441,3767.4,3767.3,0.07960262]
[1717498771039,2.65441,3767.4,3767.2,0.804]
[1717498771173,2.65441,3767.4,3767.3,0.07960262]
[1717498771373,2.65441,3767.4,3767.2,0.804]
[1717498771611,2.65441,3767.4,3767.3,0.07960262]